bitfinex-derivatives/quotes_ETHF0:USTF0_20251013
["timestamp","ask_amount","ask_price","bid_price","bid_amount"]
[1760376943117,0.43047,4177.7,4176.5,1.07648]
[1760376943314,0.3815,4177.9,4176.6,0.245]
[1760376943510,0.3815,4177.8,4177.4,0.4305]
[1760376943710,0.3815,4177.7,4177.4,0.4305]
[1760376944213,0.81197,4177.7,4177.4,0.4305]
[1760376944411,0.3815,4177.7,4177.4,0.4305]
[1760376944616,0.81197,4177.7,4177.4,0.4305]
[1760376945107,0.1398,4178.0,4177.3,0.245]
[1760376945413,0.57019,4178.5,4177.5,1.07622]
[1760376945722,1.01315362,4178.4,4177.9,0.43044]
[1760376946020,0.43042,4178.2,4177.8,0.43046]
[1760376946212,0.8119,4178.4,4177.9,0.43044]
[1760376946419,0.43044,4178.0,4177.3,0.245]
[1760376946620,0.81193,4178.1,4177.8,0.43045]
[1760376946820,0.43042,4178.2,4177.9,0.43044]
[1760376947121,0.3815,4178.0,4177.9,0.43044]
[1760376947425,0.1398,4178.5,4177.9,0.43044]
[1760376947719,0.3479,4178.0,4177.8,0.67446]
[1760376948222,0.43043,4178.1,4177.8,0.67446]
[1760376948526,0.43044,4178.0,4177.8,0.244]
[1760376948718,0.56894,4178.0,4177.6,0.43047]
[1760376949014,0.43046,4177.8,4177.6,0.43047]
[1760376949216,0.77837,4177.7,4177.3,0.244]
[1760376949416,0.3479,4177.7,4177.4,0.244]
[1760376949616,0.77838,4177.6,4176.6,1.07645]
[1760376949826,0.56899,4177.5,4177.1,0.43053]
[1760376950122,0.4864,4177.5,4177.3,0.4305]
[1760376950321,0.3479,4177.4,4177.3,0.4305]
[1760376950525,0.3479,4177.9,4177.6,0.43047]
[1760376950725,0.1385,4178.0,4177.7,0.43046]
[1760376950916,0.43047,4177.7,4176.7,0.244]
[1760376951324,0.77838,4177.6,4177.3,0.43051]
[1760376951625,0.4864,4177.0,4176.3,0.244]
[1760376951822,0.91694,4177.0,4176.7,0.43057]
[1760376952124,0.43056,4176.8,4176.6,0.43057]
[1760376952319,0.345,4176.2,4175.8,0.00230311]
[1760376952520,0.77562,4176.2,4176.0,0.43063]
[1760376952719,0.1466,4176.5,4175.8,0.24630311]
[1760376952720,0.345,4175.9,4175.8,0.00230311]
[1760376953424,0.57719,4176.5,4176.0,0.43064]
[1760376953624,0.1466,4176.5,4175.8,0.43296311]
[1760376953815,0.345,4175.9,4175.8,0.00230311]
[1760376959031,0.345,4175.7,4173.8,1.07718]
[1760376959230,1.07668,4175.8,4174.6,0.43078]
[1760376959231,0.345,4174.8,4174.6,0.43078]
[1760376959432,0.345,4174.8,4174.5,0.43079]
[1760376959830,0.345,4174.7,4174.6,0.43078]
[1760376960029,0.345,4174.7,4173.9,0.244]
[1760376960030,0.345,4174.7,4174.4,0.4308]
[1760376960231,0.34770869,4174.7,4174.6,0.43079]
[1760376960432,0.00270869,4174.7,4174.6,0.43079]
[1760376961036,0.34770869,4174.7,4174.6,0.43079]
[1760376962331,0.00270869,4174.7,4174.6,0.43079]
[1760376962932,0.345,4175.7,4174.6,0.43079]
[1760376963126,0.345,4175.6,4175.5,0.43069]
[1760376963323,0.345,4175.9,4174.2,1.07707]
[1760376963534,0.345,4174.9,4174.2,1.07707]
[1760376963735,0.43079,4174.6,4174.2,0.43082]
[1760376963931,0.43081,4174.4,4174.0,0.00235809]
[1760376964131,0.345,4174.3,4174.0,0.00235809]
[1760376964342,0.345,4174.1,4174.0,0.00235809]
[1760376965739,0.43092,4173.4,4172.1,1.0776]
[1760376966035,1.07713,4174.0,4171.3,1.70399151]
[1760376966036,0.345,4172.9,4171.7,1.07772]
[1760376966237,0.345,4172.9,4172.7,0.43098]
[1760376966732,0.1466,4173.0,4172.9,0.43096]
[1760376967130,0.4916,4173.0,4172.9,0.43096]
[1760376967329,0.1466,4174.0,4173.0,1.07739]
[1760376967537,0.345,4173.9,4173.8,0.43086]
[1760376967741,0.4916,4174.5,4174.4,0.43081]
[1760376967932,0.4916,4174.5,4173.7,1.07719]
[1760376967933,0.1466,4174.5,4173.2,1.07734]
[1760376968239,0.345,4174.4,4174.2,0.43083]
[1760376968536,0.0026474,4174.6,4173.4,1.07728]
[1760376968537,0.0026474,4174.6,4174.5,0.4308]
[1760376968838,0.345,4175.4,4173.8,10.77177]
[1760376969138,0.345,4175.9,4175.6,0.43068]
[1760376969339,0.1466,4175.5,4174.4,1.07701]
[1760376969541,0.345,4175.4,4175.0,0.43074]
[1760376969737,0.345,4175.4,4174.5,0.245]
[1760376969738,0.1466,4175.0,4174.8,0.43076]
[1760376969938,0.345,4174.9,4174.8,0.43076]
[1760376972343,0.14901384,4175.0,4174.6,0.67578]
[1760376972637,0.14901384,4175.0,4174.8,0.43076]
[1760376972840,0.00241384,4175.0,4174.8,0.43076]
[1760376973144,0.34741384,4175.0,4174.8,0.43076]
[1760376973547,0.345,4174.9,4174.8,0.43076]
[1760376974243,0.14901384,4175.0,4174.8,0.43076]
[1760376974444,0.00241384,4175.0,4174.8,0.43076]
[1760376974644,0.34741384,4175.0,4174.8,0.43076]
[1760376975542,3.84e-06,4175.0,4174.8,0.43076]
[1760376975845,0.345,4176.4,4176.1,0.43063]
[1760376976043,0.57719,4176.5,4176.1,0.43063]
[1760376976638,0.1494828,4176.5,4176.2,0.43062]
[1760376976844,0.1494828,4176.5,4176.1,0.0024854]
[1760376977139,0.1494828,4176.5,4174.2,1.07706]
[1760376977140,0.345,4175.4,4174.2,1.07706]
[1760376977343,0.345,4174.9,4174.8,0.43076]
[1760376977641,0.345,4174.9,4174.7,0.43077]
[1760376977845,0.345,4174.4,4174.0,0.245]
[1760376978041,0.345,4174.4,4174.0,0.24702047]
[1760376978546,0.345,4174.4,4174.0,0.67787047]
[1760376979039,0.5774,4174.5,4174.0,0.67787047]
[1760376979246,0.345,4174.4,4174.1,0.43084]
[1760376979747,0.345,4174.4,4174.0,0.24702047]
[1760376979942,0.345,4174.4,4174.0,0.67787047]
[1760376980144,0.345,4174.4,4174.3,0.43081]
[1760376980344,0.345,4174.9,4174.5,0.43079]
[1760376980550,0.77576,4174.9,4174.3,0.43082]
[1760376980739,0.345,4174.4,4174.3,0.43082]
[1760376981340,0.345,4174.4,4174.0,0.24702047]
[1760376981646,0.1466,4174.5,4174.2,0.43083]
[1760376981947,0.1466,4174.5,4174.3,0.43082]
[1760376982150,0.345,4174.4,4174.3,0.43082]
[1760376982445,0.43069,4175.6,4175.1,0.43073]
[1760376982743,0.3614,4175.9,4175.0,0.43075]
[1760376983051,0.3614,4175.7,4175.6,0.43068]
[1760376983348,0.3614,4176.3,4175.9,0.43065]
[1760376983539,0.43061,4176.3,4175.9,0.43065]
[1760376983739,0.3614,4176.4,4176.0,0.43064]
[1760376983941,0.3614,4176.2,4175.9,0.43065]
[1760376984242,0.1442828,4176.5,4176.0,0.43064]
[1760376984243,0.3614,4176.4,4176.0,0.43064]
[1760376984443,0.58516615,4176.3,4176.0,0.43064]
[1760376984648,0.1414,4176.0,4175.9,0.43065]
[1760376984850,0.5028,4176.0,4175.9,0.43065]
[1760376985149,0.1414,4175.5,4175.3,0.43071]
[1760376985351,0.3614,4175.4,4175.3,0.43071]
[1760376985552,0.1414,4175.5,4175.3,0.43071]
[1760376986046,0.3614,4175.8,4175.5,0.43069]
[1760376986249,0.3614,4175.7,4175.6,0.43068]
[1760376986949,0.3614,4175.7,4174.9,0.245]
[1760376987647,0.43067,4175.8,4175.5,0.43069]
[1760376987844,0.43067,4175.8,4174.1,1.07709]
[1760376987845,0.1414,4175.5,4173.0,2.95135843]
[1760376988145,0.1414,4175.5,4175.3,0.43071]
[1760376988343,0.3614,4175.8,4174.9,1.07689]
[1760376988344,0.43066,4175.9,4175.5,0.43068]
[1760376988541,0.43066,4175.8,4175.5,0.43068]
[1760376988743,0.3614,4175.4,4175.2,0.67572]
[1760376988942,0.57209,4175.5,4175.2,0.67572]
[1760376989148,0.79211,4175.4,4175.2,0.245]
[1760376991048,0.1414,4174.5,4174.0,0.00202047]
[1760376991249,0.3614,4174.4,4174.3,0.43082]
[1760376992051,0.5028,4175.0,4174.4,1.07703]
[1760376992247,0.1414,4175.5,4175.3,0.43071]
[1760376992448,0.3614,4175.4,4175.3,0.43071]
[1760376995454,0.1414,4176.0,4175.9,0.43065]
[1760376995455,0.4942,4176.0,4175.9,0.43065]
[1760376996151,0.3528,4176.4,4176.3,0.43061]
[1760376996350,0.4970828,4176.5,4176.3,0.43061]
[1760376996553,0.1442828,4176.5,4176.3,0.43061]
[1760376997249,0.3528,4176.4,4176.3,0.43061]
[1760376998858,0.0028828,4176.5,4176.3,0.43061]
[1760377000053,0.43048,4177.6,4177.2,0.43052]
[1760377000258,0.43048,4177.6,4176.5,1.07646]
[1760377000259,0.3528,4177.3,4177.1,0.43052]
[1760377000462,0.78325,4177.9,4177.3,0.43051]
[1760377000652,0.3528,4177.9,4177.1,1.07633]
[1760377000852,0.58571755,4177.8,4177.1,1.07633]
[1760377001054,0.00276967,4177.8,4177.1,1.07867693]
[1760377001256,0.3528,4177.7,4177.6,0.43047]
[1760377002262,0.1417,4177.5,4177.1,0.43287693]
[1760377002453,0.3528,4177.4,4177.1,0.43287693]
[1760377002656,0.3528,4177.2,4177.1,0.00234693]
[1760377003059,0.1417,4177.5,4177.2,0.43052]
[1760377003060,0.3528,4177.4,4177.2,0.43052]
[1760377003260,0.4945,4177.5,4177.2,0.43052]
[1760377003460,0.1417,4177.5,4177.2,0.43052]
[1760377003662,0.3528,4177.4,4177.2,0.43052]
[1760377004363,0.0328577,4177.3,4177.2,0.43052]
[1760377005165,0.3856577,4177.3,4177.2,0.43052]
[1760377005759,0.0328577,4177.3,4177.2,0.43052]
[1760377006562,0.3856577,4177.3,4177.2,0.43052]
[1760377012365,0.0328577,4177.3,4177.2,0.43052]
[1760377012569,1.28543556,4179.4,4178.9,0.43034]
[1760377012768,1.28543556,4179.4,4177.9,12.9135]
[1760377012769,0.58450338,4179.3,4179.2,0.43031]
[1760377012958,0.1344,4179.5,4179.4,0.43029]
[1760377013475,0.022,4182.8,4182.0,0.43002]
[1760377013662,0.0029179,4182.8,4182.6,10.74902]
[1760377013965,0.1344,4183.0,4182.7,0.9]
[1760377014167,0.09071674,4183.0,4182.9,0.42992]
[1760377014363,0.09071674,4183.0,4182.0,0.00215397]
[1760377014364,0.1344,4182.5,4182.3,0.42999]
[1760377014564,0.09071674,4183.0,4182.9,0.42993]
[1760377014770,0.1344,4183.5,4183.3,0.42989]
[1760377015157,0.13613014,4183.5,4182.0,0.00215397]
[1760377015363,0.1344,4184.5,4184.4,0.42978]
[1760377015973,0.4705,4184.5,4184.4,0.42978]
[1760377016671,0.3361,4184.4,4184.3,0.42979]
[1760377017562,0.13667939,4184.5,4181.9,10.75097]
[1760377017770,0.1344,4183.5,4183.4,0.42988]
[1760377017968,0.1344,4183.0,4182.4,0.246]
[1760377018167,0.1344,4183.0,4182.9,0.42993]
[1760377019468,0.4705,4183.0,4182.9,0.42993]
[1760377019972,0.1344,4183.0,4182.9,0.42993]
[1760377020370,0.4705,4183.0,4182.9,0.42993]
[1760377020566,0.13667939,4184.5,4183.4,0.42988]
[1760377020773,0.56401,4186.0,4183.9,1.07457]
[1760377020975,0.1344,4185.5,4183.4,10.74711]
[1760377021271,0.1344,4185.5,4185.0,0.42971]
[1760377021666,0.13655625,4185.5,4185.4,0.42967]
[1760377022676,0.3361,4185.4,4185.0,0.00256231]
[1760377023276,0.13655625,4185.5,4185.0,0.00256231]
[1760377023576,0.13655625,4185.5,4185.1,0.4297]
[1760377023766,0.3361,4185.4,4185.0,0.00256231]
[1760377023970,0.3361,4185.4,4185.3,0.42969]
[1760377024171,0.13655625,4185.5,4185.3,0.42969]
[1760377024477,0.3361,4185.4,4185.3,0.42969]
[1760377024678,0.3361,4185.4,4185.0,0.00256231]
[1760377025065,0.13655625,4185.5,4185.1,0.4297]
[1760377025471,0.3361,4185.4,4185.2,0.42969]
[1760377025772,0.13655625,4185.5,4185.4,0.42968]
[1760377026079,0.47265625,4185.5,4185.4,0.42968]
[1760377026272,0.90232625,4185.5,4185.0,0.00256231]
[1760377026469,0.3361,4185.3,4184.3,0.42978]
[1760377026773,0.1344,4183.5,4183.0,0.247]
[1760377026971,0.3361,4183.4,4183.3,0.42989]
[1760377027172,0.3361,4183.4,4183.1,0.42991]
[1760377027371,0.4705,4182.5,4182.4,0.42998]
[1760377027773,0.13703656,4182.5,4182.4,0.42998]
[1760377027968,0.3361,4182.4,4182.3,0.43251478]
[1760377028574,0.3361,4182.4,4182.3,0.00252478]
[1760377029176,0.43002,4182.1,4181.4,0.43008]
[1760377029368,0.4705,4181.5,4181.2,0.4301]
[1760377029574,0.1344,4181.5,4181.4,0.43009]
[1760377029781,0.4705,4181.5,4181.4,0.43009]
[1760377030083,0.1344,4180.5,4178.2,2.15205]
[1760377030273,0.4705,4180.5,4180.4,0.43019]
[1760377030979,0.4705,4180.5,4179.0,12.08108]
[1760377030980,0.4705,4179.5,4179.4,0.43029]
[1760377031176,0.47270808,4179.5,4179.4,0.43240773]
[1760377032268,0.47270808,4179.5,4179.4,0.00211773]
[1760377033079,0.1344,4178.0,4177.9,0.43045]
[1760377033274,0.3361,4177.9,4177.8,0.45438604]
[1760377033978,0.3361,4177.9,4177.8,0.45613562]
[1760377034380,0.4705,4178.5,4178.4,0.43039]
[1760377035779,0.4705,4178.0,4177.9,0.43045]
[1760377036688,0.90094,4178.0,4177.8,0.02568562]
[1760377037178,0.4705,4178.0,4177.8,0.02568562]
[1760377037380,0.3361,4177.9,4177.8,0.02568562]
[1760377037582,0.5831,4177.9,4177.8,0.02568562]
[1760377037973,0.3361,4176.4,4176.3,0.43061]
[1760377038379,0.1344,4176.5,4176.3,0.43061]
[1760377039379,0.00235403,4176.4,4176.3,0.43292101]
[1760377040585,0.33845403,4176.4,4176.3,0.43292101]
[1760377041179,0.1344,4176.5,4176.3,0.43292101]
[1760377041482,0.1344,4177.5,4176.8,0.43056]
[1760377041685,0.1344,4177.5,4177.4,0.4305]
[1760377042288,0.13741896,4177.5,4176.3,0.00231101]
[1760377042487,0.13741896,4177.5,4177.3,0.4305]
[1760377043585,0.3699,4177.4,4177.3,0.4305]
[1760377044178,0.13741896,4177.5,4176.6,1.07644]
[1760377044485,0.1393,4177.0,4176.9,0.43055]
[1760377045189,0.5092,4177.0,4176.9,0.43055]
[1760377045387,0.13741896,4177.5,4176.9,0.43055]
[1760377045689,0.13741896,4177.5,4177.4,0.4305]
[1760377045896,0.50731896,4177.5,4177.4,0.4305]
[1760377048398,0.50731896,4177.5,4176.3,2.15537101]
[1760377048399,0.50731896,4177.5,4177.3,0.4305]
[1760377048693,0.6159,4177.4,4177.3,0.4305]
[1760377049386,0.1393,4176.5,4176.4,0.4306]
[1760377049983,0.5092,4176.5,4176.4,0.4306]
[1760377050390,0.7552,4176.5,4176.4,0.4306]
[1760377050594,0.5092,4176.5,4176.4,0.4306]
[1760377050791,0.7552,4176.5,4176.4,0.4306]
[1760377051090,0.5092,4177.0,4176.9,0.43055]
[1760377051484,0.7552,4177.0,4176.9,0.43055]
[1760377051689,0.5092,4177.0,4176.9,0.43055]
[1760377052090,0.7552,4177.0,4176.9,0.43055]
[1760377053389,0.5092,4177.0,4176.9,0.43055]
[1760377053592,0.1393,4177.0,4176.9,0.43055]
[1760377053891,0.50731896,4177.5,4177.4,0.4305]
[1760377054087,0.75331896,4177.5,4177.4,0.4305]
[1760377054891,0.1393,4177.0,4176.9,0.43055]
[1760377055485,0.5092,4177.0,4176.9,0.43055]
[1760377055889,0.3699,4176.4,4176.3,0.43292101]
[1760377056296,0.1393,4176.5,4176.4,0.4306]
[1760377056496,0.7552,4176.5,4176.4,0.4306]
[1760377057090,0.5092,4176.5,4176.3,0.00231101]
[1760377057388,0.1393,4174.5,4174.1,1.0771]
[1760377057595,0.3699,4174.4,4174.2,0.43083]
[1760377057795,0.1393,4176.5,4174.1,10.77097]
[1760377057995,0.56989,4176.5,4175.8,0.43066]
[1760377058193,0.14155831,4176.0,4175.8,0.43311625]
[1760377058494,0.00225831,4176.0,4175.8,0.43311625]
[1760377058995,0.14155831,4176.0,4175.8,0.43311625]
[1760377059792,0.1393,4177.0,4175.8,0.43311625]
[1760377059793,0.98001905,4178.0,4176.0,10.76612]
[1760377059992,0.54522137,4177.9,4177.4,0.4305]
[1760377060196,0.54522137,4177.8,4176.7,1.07643]
[1760377060400,0.1393,4178.0,4177.8,0.43045]
[1760377060587,0.54610911,4177.9,4177.8,0.43045]
[1760377060791,0.97856653,4177.9,4176.7,1.07642]
[1760377060987,0.1393,4177.5,4177.2,0.43051]
[1760377061294,0.54682479,4177.4,4177.3,0.43051]
[1760377061688,0.91672479,4177.4,4177.3,0.43051]
[1760377064092,0.54682479,4177.4,4177.3,0.43051]
[1760377064300,0.6159,4177.8,4177.7,0.43047]
[1760377064487,0.91762759,4177.8,4177.7,0.43047]
[1760377064692,0.54772759,4177.8,4177.7,0.43047]
[1760377064899,0.91762759,4177.8,4177.7,0.43047]
[1760377066694,1.16362759,4177.8,4177.7,0.43047]
[1760377068197,5.01e-06,4177.9,4177.7,0.43047]
[1760377068506,0.1393,4179.0,4178.8,0.43035]
[1760377068701,0.6159,4178.9,4178.7,0.43036]
[1760377068909,0.5092,4179.0,4178.9,0.43034]
[1760377069105,0.7552,4179.0,4178.9,0.43034]
[1760377069602,0.51173009,4179.0,4178.9,0.43204033]
[1760377069798,0.75773009,4179.0,4178.9,0.43204033]
[1760377070599,0.75773009,4179.0,4178.9,0.00170033]
[1760377070802,0.75773009,4179.0,4178.3,0.4304]
[1760377070803,0.1567,4178.5,4178.3,0.4304]
[1760377071108,0.3976,4178.4,4178.3,0.4304]
[1760377071604,0.6436,4178.4,4178.3,0.4304]
[1760377071805,1.39646828,4179.0,4178.9,0.43034]
[1760377072108,0.78543009,4179.0,4178.9,0.00191772]
[1760377072607,0.78543009,4179.0,4178.9,0.43225772]
[1760377073298,0.53943009,4179.0,4178.9,0.43225772]
[1760377073602,0.78543009,4179.0,4178.9,0.43225772]
[1760377074705,1.21576009,4179.0,4178.9,0.00191772]
[1760377074912,4.27018059,4179.0,4178.9,1.772e-05]
[1760377075298,5.12661834,4179.0,4178.9,1.772e-05]
[1760377076306,4.27018059,4179.0,4178.9,1.772e-05]
[1760377076807,5.12661834,4179.0,4178.9,1.772e-05]
[1760377076999,5.52883645,4179.0,4178.9,1.772e-05]
[1760377077504,4.27018059,4179.0,4178.9,1.772e-05]
[1760377078001,5.55467577,4179.0,4178.9,1.772e-05]
[1760377078311,4.27018059,4179.0,4178.9,1.772e-05]
[1760377078506,5.55467682,4179.0,4178.9,1.772e-05]
[1760377078899,6.41014734,4179.0,4176.0,1.2614768]
[1760377079106,0.1524,4177.0,4176.2,1.07655]
[1760377079408,0.1524,4176.5,4176.3,0.43061]
[1760377079603,0.6342,4176.4,4176.3,0.43061]
[1760377079804,0.6342,4176.4,4175.2,1.07681]
[1760377079805,0.1524,4176.0,4175.2,1.07681]
[1760377080003,0.6342,4175.9,4175.4,1.07677]
[1760377080200,0.3882,4175.8,4175.4,0.4307]
[1760377080410,0.15462637,4176.0,4175.2,0.00309532]
[1760377080609,0.246,4175.9,4175.8,0.43066]
[1760377080913,0.6342,4175.9,4175.8,0.43066]
[1760377081213,0.3882,4175.4,4175.3,0.43071]
[1760377081598,0.246,4175.9,4175.5,1.07673]
[1760377081599,0.3882,4175.9,4175.5,1.07673]
[1760377081803,0.6342,4175.8,4175.6,0.43068]
[1760377081997,0.00222637,4176.0,4175.9,0.43065]
[1760377082207,0.24822637,4176.0,4175.9,0.43385]
[1760377082412,0.78882637,4176.0,4175.9,0.43065]
[1760377082910,0.63642637,4176.0,4175.9,0.43065]
[1760377083111,0.24822637,4176.0,4175.9,0.43065]
[1760377084406,0.00222637,4176.0,4175.9,0.43385]
[1760377084805,0.1524,4177.5,4176.9,0.43055]
[1760377085012,1.00878789,4178.0,4177.9,0.43045]
[1760377085013,0.1524,4178.0,4177.9,0.43045]
[1760377085214,0.7866,4178.0,4177.9,0.43045]
[1760377085415,0.5406,4178.0,4177.9,0.43045]
[1760377085605,0.7866,4178.0,4176.8,0.0009]
[1760377085805,0.7866,4178.0,4174.8,24.48977843]
[1760377085806,0.5406,4177.5,4177.4,0.43049]
[1760377086303,0.54313303,4178.0,4177.9,0.43045]
[1760377086814,0.78913303,4178.0,4177.9,0.43045]
[1760377087209,0.78913303,4178.0,4177.9,0.43135]
[1760377087210,0.00253303,4178.0,4177.9,0.43135]
[1760377087512,0.3882,4179.2,4179.1,0.43032]
[1760377087701,0.3882,4178.9,4178.8,0.43035]
[1760377088205,0.246,4178.9,4178.8,0.43035]
[1760377088509,0.63702547,4178.9,4178.8,0.43292866]
[1760377089105,0.39102547,4178.9,4178.8,0.43292866]
[1760377089513,0.00282547,4178.9,4178.8,0.43292866]
[1760377089712,0.5406,4180.0,4179.9,0.43024]
[1760377089907,0.3882,4180.0,4179.9,0.43024]
[1760377090113,0.3882,4180.5,4180.4,0.43019]
[1760377090409,0.5406,4181.0,4180.9,0.43014]
[1760377090610,0.3882,4181.0,4180.9,0.43014]
[1760377090807,0.00235631,4181.0,4180.9,0.43014]
[1760377091005,0.1524,4182.5,4181.9,0.43003]
[1760377091208,0.246,4182.4,4181.9,0.43003]
[1760377091411,0.3882,4182.3,4181.9,0.43003]
[1760377091708,0.3882,4182.3,4181.6,0.43006]
[1760377091914,0.3882,4182.2,4181.6,0.43285317]
[1760377092415,0.3882,4182.2,4181.7,0.43005]
[1760377092618,0.00282457,4182.3,4181.7,0.43005]
[1760377093205,0.3882,4182.2,4181.9,0.43003]
[1760377093417,0.3882,4182.2,4182.0,0.43002]
[1760377094307,0.3882,4182.2,4181.6,0.00279317]
[1760377094512,0.00282457,4182.3,4181.7,0.43005]
[1760377094716,0.00282457,4182.3,4181.9,0.43003]
[1760377095015,0.3882,4182.2,4182.0,0.43002]
[1760377095717,0.00282457,4182.3,4181.8,0.43004]
[1760377095918,0.00282457,4182.3,4182.2,0.43]
[1760377096710,0.3882,4183.3,4182.7,0.42995]
[1760377096911,0.3882,4183.9,4182.1,10.75046]
[1760377097118,0.5406,4184.5,4183.9,0.42983]
[1760377097310,0.3882,4184.4,4184.2,0.42979]
[1760377097609,0.3882,4184.4,4182.8,1.07484]
[1760377097805,0.3882,4184.3,4183.9,0.42983]
[1760377098008,0.00263726,4184.4,4183.9,0.42983]
[1760377098205,0.3882,4184.3,4183.9,0.42983]
[1760377098518,0.00263726,4184.4,4184.1,0.42981]
[1760377099116,0.3882,4184.3,4184.1,0.42981]
[1760377099317,0.42984,4183.9,4181.1,10.75282]
[1760377099617,0.1524,4184.0,4183.3,0.42989]
[1760377099815,0.3882,4183.9,4183.3,0.42989]
[1760377100013,0.1524,4184.0,4182.1,1.07502]
[1760377100014,0.58228,4183.5,4182.1,1.07502]
[1760377100216,0.58228,4183.5,4181.5,1.07519]
[1760377100217,0.81812,4183.1,4181.5,1.07519]
[1760377100415,0.1524,4183.0,4181.5,1.07519]
[1760377100618,0.1524,4183.0,4179.8,14.1658168]
[1760377100619,0.3984,4183.0,4180.6,1.07541]
[1760377100919,0.1524,4182.0,4180.6,1.07541]
[1760377101121,0.43004,4181.9,4181.3,0.43009]
[1760377101321,0.43004,4181.9,4180.6,1.07541]
[1760377101322,0.3882,4181.7,4181.2,0.4301]
[1760377101512,0.3882,4181.7,4180.6,1.07542]
[1760377101716,0.3882,4181.7,4181.4,0.43008]
[1760377102623,0.3882,4181.7,4181.3,0.43009]
[1760377103024,0.3882,4181.7,4181.4,0.43008]
[1760377103325,0.3882,4181.7,4181.3,0.43009]
[1760377103624,0.3882,4181.7,4181.4,0.43008]
[1760377104012,0.3882,4181.7,4181.3,0.43009]
[1760377104418,0.3882,4181.7,4181.5,0.43007]
[1760377106522,0.3882,4181.7,4181.3,0.43009]
[1760377106722,0.3882,4181.7,4181.4,0.43008]
[1760377107125,0.3882,4181.7,4181.1,0.43011]
[1760377107326,0.3882,4181.7,4181.5,0.43007]
[1760377107526,0.3693,4182.3,4182.1,0.43001]
[1760377107722,0.58237,4182.5,4181.9,0.43003]
[1760377107917,0.58237,4182.5,4182.1,0.43001]
[1760377108225,0.58237,4182.5,4181.4,1.07522]
[1760377108226,0.1524,4182.5,4182.2,0.43]
[1760377108813,0.1524,4182.5,4181.6,1.07794317]
[1760377108814,0.1524,4182.5,4182.3,0.42999]
[1760377109023,0.3693,4182.4,4182.3,0.42999]
[1760377109221,0.42991,4183.2,4182.7,0.42995]
[1760377109527,0.42995,4182.8,4181.6,0.00279317]
[1760377109715,0.151,4182.5,4182.1,0.43001]
[1760377109920,0.3693,4182.4,4181.7,1.07514]
[1760377110224,0.151,4182.5,4182.2,0.43]
[1760377110723,0.3693,4182.9,4181.8,1.07512]
[1760377110919,0.5203,4183.0,4182.8,0.42994]
[1760377111119,0.5217,4183.5,4183.2,0.42989]
[1760377111320,0.42989,4183.3,4182.9,0.42993]
[1760377111527,0.151,4183.0,4182.3,1.07499]
[1760377111832,0.3693,4182.9,4182.8,0.42994]
[1760377112028,0.3693,4182.9,4181.8,1.07511]
[1760377112228,0.79923,4182.9,4182.4,0.42998]
[1760377112530,0.5203,4182.5,4182.4,0.42998]
[1760377112923,0.3693,4182.9,4182.8,0.42994]
[1760377113118,0.3693,4183.4,4182.5,1.07494]
[1760377113324,0.3693,4183.4,4183.0,0.42992]
[1760377113526,0.1524,4183.5,4183.3,0.42988]
[1760377113722,0.3693,4183.8,4183.7,0.42985]
[1760377114027,0.151,4184.0,4183.6,0.42986]
[1760377114028,0.3693,4183.9,4183.6,0.42986]
[1760377114423,0.3693,4183.9,4183.8,0.42984]
[1760377114624,0.37193726,4184.4,4184.1,0.42981]
[1760377114832,0.151,4184.0,4183.7,0.42984]
[1760377115029,0.58087,4183.5,4181.3,10.75243]
[1760377115229,0.151,4183.5,4183.1,0.42991]
[1760377115732,0.3693,4183.4,4183.1,0.42991]
[1760377115935,0.151,4183.5,4183.1,0.42991]
[1760377116133,0.151,4183.5,4183.4,0.42988]
[1760377116533,0.151,4183.5,4183.1,0.42991]
[1760377116733,0.3693,4183.4,4183.3,0.42989]
[1760377118030,0.151,4183.0,4181.9,1.07507]
[1760377118230,0.79929,4182.4,4181.9,0.43003]
[1760377118434,0.3693,4181.9,4181.6,0.00279317]
[1760377119036,0.3693,4181.7,4181.6,0.00279317]
[1760377119236,0.3693,4180.9,4179.9,0.246]
[1760377119435,0.3693,4180.9,4180.5,0.43017]
[1760377119740,0.5203,4181.0,4180.8,0.43015]
[1760377119940,0.151,4181.0,4180.8,0.43015]
[1760377120139,0.3693,4180.9,4180.8,0.43015]
[1760377120328,0.3693,4180.9,4180.8,0.43245695]
[1760377122135,0.00167389,4181.0,4180.8,0.43245695]
[1760377127744,0.385,4180.9,4180.8,0.00230695]
[1760377129950,0.00167389,4181.0,4180.9,0.43014]
[1760377130253,0.38667389,4181.0,4180.9,0.43014]
[1760377130449,0.00167389,4181.0,4180.9,0.43014]
[1760377132655,0.52367389,4181.0,4180.9,0.43014]
[1760377136362,0.00167389,4181.0,4180.9,0.43014]
[1760377137857,0.52367389,4181.0,4180.9,0.43014]
[1760377139454,0.80574,4180.9,4180.8,0.00230695]
[1760377139660,0.3756,4180.4,4180.3,0.4302]
[1760377139856,0.1464,4180.0,4179.5,1.07571]
[1760377140062,0.3756,4179.9,4179.5,1.07571]
[1760377140362,0.522,4180.0,4179.9,0.43024]
[1760377140558,0.1464,4180.5,4180.4,0.43019]
[1760377140758,0.52367389,4181.0,4180.9,0.43014]
[1760377141761,0.00167389,4181.0,4180.9,0.43014]
[1760377144073,0.3756,4182.5,4182.4,0.42998]
[1760377144367,0.522,4183.0,4182.9,0.42993]
[1760377145070,0.52500829,4183.0,4182.9,0.43168967]
[1760377147062,0.00300829,4183.0,4182.9,0.43168967]
[1760377147466,8.29e-06,4183.0,4182.9,0.43168967]
[1760377148270,0.522,4184.0,4183.9,0.42983]
[1760377148568,0.85638789,4185.3,4185.1,0.4297]
[1760377148765,0.84608789,4185.8,4185.7,0.42965]